bitfinex-derivatives/quotes_ETHF0:USTF0_20210705
["timestamp","ask_amount","ask_price","bid_price","bid_amount"]
[1625454830775,2.29519647,2258.5,2258.4,2.20527]
[1625454831885,1.0,2258.5,2258.4,2.20527]
[1625454832185,2.29578192,2258.5,2258.4,2.20527]
[1625454832841,4.66268192,2258.5,2258.4,2.20527]
[1625454833234,3.3669,2258.5,2258.4,2.20527]
[1625454835795,1.0,2258.5,2258.4,2.20527]
[1625454837404,3.50025833,2258.7,2258.4,2.20527]
[1625454837605,2.20527,2258.7,2258.4,2.20527]
[1625454837703,2.20527,2258.7,2258.4,18.263154]
[1625454837805,3.20527,2258.7,2258.4,18.263154]
[1625454838054,3.20527,2258.7,2258.5,1.30823102]
[1625454838360,2.20527,2258.7,2258.6,15.996917]
[1625454838465,3.20527,2258.7,2258.6,15.996917]
[1625454838763,3.20527,2258.7,2258.4,5.71878732]
[1625454838862,3.20527,2258.7,2258.5,15.968022]
[1625454839420,3.20527,2258.7,2258.4,5.71878732]
[1625454840320,3.20527,2258.7,2258.4,4.41054]
[1625454840774,5.41054,2258.7,2258.4,4.41054]
[1625454842737,4.41054,2258.7,2258.4,4.41054]
[1625454843035,4.41054,2258.7,2258.5,16.060593]
[1625454843237,4.41054,2258.7,2258.5,70.593593]
[1625454843336,4.41054,2258.7,2258.5,16.060593]
[1625454843937,5.70829946,2258.7,2258.4,4.41054]
[1625454844038,1.0,2258.6,2258.4,4.41054]
[1625454844538,2.29820064,2258.6,2258.4,4.41054]
[1625454844789,2.29820064,2258.6,2258.4,2.20527]
[1625454845340,1.0,2258.6,2258.4,2.20527]
[1625454849407,2.29921797,2258.6,2258.4,2.20527]
[1625454849657,1.0,2258.6,2258.4,2.20527]
[1625454850107,5.70951344,2258.7,2258.4,2.20527]
[1625454850407,4.41054,2258.7,2258.5,16.112779]
[1625454851262,5.41054,2258.7,2258.5,16.112779]
[1625454852166,4.41054,2258.7,2258.5,16.112779]
[1625454852919,4.41054,2258.7,2258.5,17.42128408]
[1625454853731,4.41054,2258.7,2258.6,1.30855887]
[1625454854032,4.41054,2258.7,2258.6,17.38182187]
[1625454854485,2.20527,2258.7,2258.6,17.38182187]
[1625454854585,2.20527,2258.7,2258.6,20.19142187]
[1625454854785,2.20527,2258.7,2258.6,18.882863]
[1625454856289,3.20527,2258.7,2258.6,18.882863]
[1625454856493,2.20527,2258.7,2258.6,18.882863]
[1625454856742,3.20527,2258.7,2258.6,18.882863]
[1625454857092,2.20527,2258.7,2258.6,18.882863]
[1625454858495,2.20527,2258.7,2258.6,20.19160203]
[1625454858693,1.30163241,2259.0,2258.6,20.19160203]
[1625454858894,2.30163241,2259.0,2258.9,2.20527]
[1625454859096,1.30163241,2259.0,2258.9,2.20527]
[1625454859201,1.30163241,2259.0,2258.9,18.327292]
[1625454859649,2.20527,2259.1,2258.9,18.327292]
[1625454859949,2.20527,2259.1,2258.9,19.63559472]
[1625454860605,2.20527,2259.1,2259.0,1.30826352]
[1625454860958,2.20527,2259.1,2259.0,17.43628052]
[1625454862309,1.0,2259.3,2259.0,17.43628052]
[1625454862412,1.30217297,2259.4,2259.0,17.43628052]
[1625454862609,1.30217297,2259.4,2259.1,0.1310542]
[1625454862911,1.30217297,2259.4,2259.3,55.10627]
[1625454863016,1.30288932,2259.7,2259.3,59.12743883]
[1625454863232,1.30288932,2259.7,2259.3,75.07153483]
[1625454863321,1.30291012,2259.8,2259.4,1.30787909]
[1625454863618,1.30291012,2259.8,2259.5,16.021538]
[1625454863820,3.38751223,2260.2,2259.5,16.021538]
[1625454863821,1.30314764,2260.1,2259.5,17.32857932]
[1625454864324,1.30325693,2260.2,2259.6,1.30700948]
[1625454864629,1.30325693,2260.2,2259.7,16.02083]
[1625454864932,1.30325693,2260.2,2260.1,4.41054]
[1625454865135,1.30405589,2260.3,2260.1,4.41054]
[1625454865233,1.30405589,2260.3,2260.1,20.358669]
[1625454866085,1.30301823,2260.4,2260.1,20.358669]
[1625454866185,2.30301823,2260.4,2260.1,20.358669]
[1625454866986,2.30301823,2260.4,2260.3,39.483]
[1625454867287,2.30301823,2260.4,2260.3,55.608837]
[1625454867686,1.30301823,2260.4,2260.3,55.608837]
[1625454867790,3.50771659,2260.6,2260.3,55.608837]
[1625454868947,3.50771659,2260.6,2260.5,2.20527]
[1625454869247,3.50771659,2260.6,2260.5,18.208028]
[1625454869998,3.50771659,2260.6,2260.5,20.503928]
[1625454870198,2.20527,2260.6,2260.5,20.503928]
[1625454870798,2.20527,2260.8,2260.5,20.503928]
[1625454870900,1.30220521,2260.9,2260.7,2.20527]
[1625454871199,1.82308729,2261.0,2260.8,15.995031]
[1625454871200,1.3025523,2261.0,2260.8,15.995031]
[1625454872302,1.82357322,2261.1,2260.8,15.995031]
[1625454872303,1.30195242,2261.1,2260.8,15.995031]
[1625454872651,1.30191022,2261.2,2260.8,15.995031]
[1625454872952,1.30191022,2261.2,2261.1,2.20527]
[1625454873453,2.30191022,2261.2,2261.1,2.20527]
[1625454874154,1.0,2261.2,2261.1,2.20527]
[1625454878123,45.8564,2261.2,2261.1,2.20527]
[1625454878224,4.5676,2261.2,2261.1,2.20527]
[1625454879228,3.5676,2261.2,2261.1,2.20527]
[1625454879779,1.0,2261.6,2261.1,18.310341]
[1625454880337,2.20527,2261.7,2261.1,18.310341]
[1625454881089,2.29945434,2261.9,2261.6,4.41054]
[1625454881393,2.29945434,2261.9,2261.7,15.973424]
[1625454881494,1.0,2261.9,2261.7,15.973424]
[1625454882921,1.0,2261.9,2261.6,4.41054]
[1625454883009,5.70769503,2262.2,2261.6,4.41054]
[1625454883203,6.70769503,2262.2,2261.6,4.41054]
[1625454883310,6.70769503,2262.2,2261.7,16.183479]
[1625454883411,6.70769503,2262.2,2261.7,56.869379]
[1625454883509,5.41054,2262.2,2261.7,56.869379]
[1625454883868,5.41054,2262.2,2261.7,16.183479]
[1625454884161,5.41054,2262.2,2261.6,4.41054]
[1625454884709,5.41054,2262.2,2261.7,15.982867]
[1625454885060,1.0,2262.2,2262.1,2.20527]
[1625454885161,1.29677386,2262.5,2262.1,4.78817]
[1625454885259,1.0,2262.4,2262.1,4.78817]
[1625454886126,1.0,2262.4,2262.2,16.073368]
[1625454887026,1.0,2262.4,2262.3,2.20527]
[1625454889631,2.20527,2262.6,2262.3,2.20527]
[1625454890034,1.0,2262.5,2262.4,16.06982]
[1625454890336,1.0,2262.5,2262.3,2.20527]
[1625454891492,1.0,2262.5,2262.1,2.20527]
[1625454892852,47.9203,2262.3,2262.1,2.20527]
[1625454892948,1.0,2262.2,2262.1,2.20527]
[1625454893047,1.0,2262.2,2262.1,4.41054]
[1625454894201,1.0,2262.2,2262.1,2.20527]
[1625454895104,3.20527,2262.2,2262.1,2.20527]
[1625454897559,3.20527,2262.2,2262.1,0.74047]
[1625454897658,3.20527,2262.2,2261.7,2.20527]
[1625454899078,2.20527,2261.8,2261.7,2.20527]
[1625454900182,3.20527,2261.8,2261.7,2.20527]
[1625454906799,3.20527,2261.8,2261.5,2.20527]
[1625454907752,6.95317,2261.8,2261.5,2.20527]
[1625454907851,6.95317,2261.8,2261.0,2.20527]
[1625454907954,5.0,2261.7,2259.4,14.4139]
[1625454908059,1.0,2261.6,2259.4,14.4139]
[1625454908657,1.0,2261.6,2259.5,15.955034]
[1625454909210,2.20527,2260.6,2260.5,2.20527]
[1625454909305,6.68837,2260.6,2260.5,2.20527]
[1625454909705,6.68837,2260.6,2259.3,14.7835]
[1625454910408,6.68837,2260.6,2259.4,16.17206]
[1625454911157,2.20527,2259.8,2259.7,2.20527]
[1625454911357,2.20527,2259.8,2259.4,18.37733]
[1625454911456,2.20527,2259.8,2259.4,2.20527]
[1625454912008,2.20527,2259.8,2259.5,15.997327]
[1625454912109,1.0,2260.6,2259.5,18.523627]
[1625454913261,2.20527,2260.2,2260.1,5.29687]
[1625454913564,2.20527,2260.2,2260.1,21.360462]
[1625454914813,1.0,2260.7,2260.1,21.360462]
[1625454915262,1.0,2260.7,2260.6,4.86027]
[1625454915364,2.20527,2260.9,2260.6,4.86027]
[1625454915562,2.20527,2260.9,2260.6,20.787536]
[1625454915664,2.20527,2261.1,2260.6,20.787536]
[1625454916867,2.20527,2261.1,2260.9,39.4036]
[1625454917167,2.20527,2261.1,2261.0,16.065877]
[1625454917267,2.20527,2261.4,2261.0,18.271147]
[1625454918120,2.20527,2261.4,2261.1,52.3068]
[1625454918220,2.20527,2261.4,2261.1,54.7438]
[1625454918425,1.0,2262.0,2261.2,16.035669]
[1625454919280,1.0,2262.0,2261.9,8.16514]
[1625454919677,1.0,2262.0,2261.9,24.192192]
[1625454920179,2.20527,2262.5,2261.9,24.192192]
[1625454920580,1.0,2262.4,2261.9,24.192192]
[1625454920682,1.0,2262.4,2262.3,40.6133]
[1625454920882,2.20527,2262.5,2262.3,40.6133]
[1625454920981,2.20527,2262.5,2262.3,56.74888]
[1625454921282,2.20527,2262.5,2262.4,7.90604]
[1625454921633,2.20527,2262.5,2262.4,24.016101]
[1625454922893,0.8765,2262.6,2262.4,24.016101]
[1625454922985,3.20527,2262.7,2262.4,24.016101]
[1625454924644,3.20527,2262.7,2262.4,21.810831]
[1625454924947,3.20527,2262.7,2262.4,5.70077]
[1625454925048,3.20527,2262.7,2262.4,2.20527]
[1625454925900,3.20527,2262.7,2262.5,16.101144]
[1625454926956,1.0,2262.7,2262.5,16.101144]
[1625454927059,1.0,2262.9,2262.5,16.101144]
[1625454927258,1.0,2262.9,2262.7,2.20527]
[1625454927658,1.0,2262.9,2262.8,15.938279]
[1625454929321,1.0,2262.9,2262.8,18.143549]
[1625454930781,1.0,2262.9,2262.8,2.20527]
[1625454935492,1.0,2262.9,2262.8,7e-05]
[1625454935593,1.0,2262.9,2260.6,2.655]
[1625454936244,1.0,2262.9,2261.3,16.080846]
[1625454937355,2.20527,2262.3,2262.2,2.20527]
[1625454937466,3.20527,2262.3,2262.2,2.20527]
[1625454938313,3.1676556,2262.3,2262.2,2.20527]
[1625454938513,2.1676556,2262.3,2262.2,2.20527]
[1625454938814,2.1676556,2262.3,2262.2,18.304345]
[1625454939018,1.0,2262.8,2262.2,18.304345]
[1625454939365,2.20527,2262.6,2262.5,2.20527]
[1625454939615,3.20527,2262.6,2262.5,2.20527]
[1625454939730,3.20527,2262.6,2262.5,18.332163]
[1625454939816,3.20527,2262.6,2262.5,16.126893]
[1625454940116,3.20527,2262.6,2262.3,16.01023]
[1625454940216,2.20527,2262.6,2262.3,16.01023]
[1625454941320,2.20527,2262.6,2262.5,2.20527]
[1625454941521,2.20527,2262.9,2262.5,2.20527]
[1625454941621,2.20527,2262.9,2262.5,18.253983]
[1625454943338,2.20527,2262.9,2262.8,2.20527]
[1625454943438,2.20527,2262.9,2262.8,4.76337]
[1625454943642,2.20527,2262.9,2262.8,20.729391]
[1625454944291,3.20527,2262.9,2262.8,20.729391]
[1625454944390,3.20527,2262.9,2262.8,4.76337]
[1625454944540,3.20527,2262.9,2262.8,2.20527]
[1625454944642,3.20527,2262.9,2262.5,2.20527]
[1625454945293,3.20527,2262.9,2262.6,16.087748]
[1625454945594,3.20527,2262.9,2262.5,2.20527]
[1625454946243,3.20527,2262.9,2261.2,14.0867]
[1625454946544,3.20527,2262.9,2261.7,42.0253]
[1625454946943,3.20527,2262.9,2261.8,15.920633]
[1625454947346,2.20527,2262.1,2262.0,2.20527]
[1625454947448,4.56757,2262.1,2262.0,2.20527]
[1625454948610,2.3623,2262.1,2262.0,2.20527]
[1625454948801,2.3623,2262.1,2262.0,18.166417]
[1625454949001,1.0,2262.5,2262.0,18.166417]
[1625454949352,2.20527,2262.5,2262.4,2.20527]
[1625454949707,2.20527,2262.5,2262.4,18.350688]
[1625454950254,1.0,2263.2,2262.4,18.350688]
[1625454951367,2.20527,2262.5,2262.4,18.350688]
[1625454951869,2.20527,2262.7,2262.4,18.350688]
[1625454953425,2.20527,2262.7,2262.6,2.20527]
[1625454953775,2.20527,2262.7,2262.6,18.216376]
[1625454955084,3.20527,2262.7,2262.6,2.20527]
[1625454955275,3.20527,2262.7,2261.2,14.0867]
[1625454955375,2.20527,2262.4,2262.3,2.20527]
[1625454955926,5.97377,2262.7,2262.3,18.298087]
[1625454956277,1.0,2262.6,2262.3,18.298087]
[1625454956377,5.97377,2262.7,2262.3,18.298087]
[1625454956888,5.97377,2262.7,2262.3,69.835287]
[1625454957388,5.97377,2262.7,2262.6,2.20527]
[1625454957691,5.97377,2262.7,2262.6,18.122997]
[1625454957942,2.20527,2262.7,2262.6,18.122997]
[1625454960247,3.20527,2262.7,2262.6,18.122997]
[1625454960550,3.20527,2262.7,2262.6,2.20527]
[1625454965627,2.20527,2262.7,2262.6,4.60607]
[1625454966027,2.20527,2262.7,2262.6,20.536979]
[1625454966122,2.20527,2262.7,2262.6,73.300679]
[1625454966327,2.20527,2262.7,2262.6,20.536979]
[1625454972592,3.20527,2262.7,2262.6,20.536979]
[1625454972696,3.20527,2262.7,2262.6,18.136179]
[1625454972795,3.20527,2262.7,2262.6,2.20527]
[1625454975877,3.20527,2262.7,2262.3,2.20527]
[1625454976332,3.20527,2262.7,2261.2,14.0867]
[1625454976989,3.20527,2262.7,2261.3,15.991448]
[1625454977188,4.50575543,2262.7,2261.3,15.991448]
[1625454977442,9.50575543,2262.7,2261.3,15.991448]
[1625454977545,2.20527,2261.7,2261.6,2.20527]
[1625454977642,6.51107,2261.7,2261.3,18.196718]
[1625454977739,6.51107,2261.7,2261.3,15.991448]
[1625454977839,6.51107,2261.7,2260.8,1.29137775]
[1625454977940,6.51107,2261.7,2260.7,14.081]
[1625454978142,6.51107,2261.7,2260.3,1.29366526]
[1625454978539,6.51107,2261.7,2260.4,15.984883]
[1625454978691,6.51107,2261.7,2260.4,66.839083]
[1625454978791,6.51107,2261.7,2260.4,17.27881587]
[1625454979141,6.51107,2261.7,2260.4,15.984883]
[1625454979541,6.51107,2261.7,2261.0,2.20527]
[1625454979843,6.51107,2261.7,2261.1,16.059172]
[1625454981596,2.20527,2261.2,2261.1,16.059172]
[1625454981695,3.20527,2261.2,2261.1,16.059172]
[1625454981848,2.20527,2261.2,2261.1,16.059172]
[1625454982096,3.20527,2261.2,2261.1,16.059172]
[1625454982696,3.20527,2261.2,2260.9,15.968176]
[1625454982796,1.0,2261.2,2260.9,15.968176]
[1625454982897,2.20527,2261.7,2260.9,15.968176]
[1625454982998,2.20527,2261.7,2261.1,16.070545]
[1625454983099,1.0,2261.6,2261.1,16.070545]
[1625454983299,1.0,2261.6,2260.9,16.181671]
[1625454983599,1.0,2261.6,2261.2,2.20527]
[1625454983950,1.0,2261.6,2261.3,15.945991]
[1625454985556,2.20527,2261.4,2261.3,15.945991]
[1625454985656,1.0,2261.6,2261.3,15.945991]
[1625454986558,2.20527,2261.7,2261.3,15.945991]
[1625454987563,2.20527,2261.4,2261.3,15.945991]
[1625454987860,3.20527,2261.4,2261.3,15.945991]
[1625454988948,2.20527,2261.4,2261.3,15.945991]
[1625454989946,2.20527,2261.7,2261.3,15.945991]
[1625454990048,2.20527,2261.7,2261.3,19.681191]
[1625454990258,1.0,2261.6,2261.3,19.681191]
[1625454991655,1.0,2261.6,2261.5,2.20527]
[1625454992158,1.0,2261.6,2260.6,3.1467]
[1625454992358,1.0,2261.6,2260.3,38.1144]
[1625454992609,1.0,2261.6,2260.4,1.29379588]
[1625454992861,1.0,2261.6,2260.4,17.30896488]
[1625454993413,1.0,2261.6,2260.4,16.015169]
[1625454993610,1.0,2261.6,2261.5,2.20527]
[1625454993961,1.0,2261.6,2261.5,18.230852]
[1625454994965,1.0,2261.6,2261.5,16.025582]
[1625454995064,1.0,2261.6,2260.2,1.29320952]
[1625454995162,3.7819,2261.6,2260.2,1.29320952]
[1625454995464,54.8892,2261.0,2260.2,1.29320952]
[1625454995562,4.5806,2260.9,2260.2,1.29320952]
[1625454995670,2.20527,2260.5,2260.4,2.20527]
[1625454995766,3.20527,2260.5,2260.4,2.20527]
[1625454996967,3.20527,2260.5,2259.5,1.29490577]
[1625454997469,3.20527,2260.5,2259.2,13.8843]
[1625454997568,3.20527,2260.5,2259.6,16.051747]
[1625454997668,1.0,2260.5,2259.6,16.051747]
[1625454997868,1.0,2260.5,2259.4,16.174969]
[1625454998068,1.0,2260.5,2259.3,18.256957]
[1625454998168,1.0,2260.5,2259.7,16.106554]
[1625454998469,1.0,2260.5,2259.4,15.952802]
[1625454998720,1.0,2260.5,2259.3,2.20527]
[1625454999019,1.0,2260.5,2259.4,16.170024]
[1625454999674,4.41054,2259.5,2259.4,16.170024]
[1625455000234,1.0,2260.5,2259.4,16.170024]
[1625455000331,1.0,2260.5,2259.4,19.251824]
[1625455000432,1.30064456,2261.2,2259.4,19.251824]
[1625455000535,1.0,2261.1,2259.4,19.251824]
[1625455000734,1.0,2261.1,2259.4,20.54491183]
[1625455001594,1.0,2261.1,2260.0,2.20527]
[1625455001693,1.0,2261.1,2260.0,5.32057]
[1625455001895,1.0,2261.1,2260.1,15.949911]
[1625455003658,4.41054,2260.2,2260.1,15.949911]
[1625455003760,5.41054,2260.2,2260.1,15.949911]
[1625455004407,4.41054,2260.2,2260.1,15.949911]
[1625455004910,4.41054,2260.2,2259.4,16.174424]
[1625455005208,4.41054,2260.2,2260.1,16.092514]
[1625455005508,4.41054,2260.2,2259.4,16.010167]
[1625455005708,4.41054,2260.2,2260.1,3.41054]
[1625455005810,4.41054,2260.2,2260.1,19.569365]
[1625455006161,4.41054,2260.2,2260.1,3.41054]
[1625455006459,4.41054,2260.2,2260.1,19.378507]
[1625455006663,4.41054,2260.2,2260.1,15.967967]
[1625455006960,4.41054,2260.2,2259.6,16.021682]
[1625455007062,4.41054,2260.2,2259.7,1.0]
[1625455007261,4.41054,2260.2,2260.1,16.136206]
[1625455007562,4.41054,2260.2,2259.9,1.0]
[1625455007762,4.41054,2260.2,2260.0,16.130448]
[1625455007864,4.41054,2260.2,2260.1,15.975866]
[1625455008263,4.41054,2260.2,2260.1,1.0]
[1625455008513,4.41054,2260.2,2260.1,17.156275]
[1625455013025,15.0119,2261.4,2260.1,17.156275]
[1625455013735,2.20527,2260.9,2260.7,2.20527]
[1625455013839,2.20527,2260.9,2260.8,1.0]
[1625455013935,2.20527,2260.9,2260.5,2.20527]
[1625455014037,2.20527,2260.9,2260.8,16.183438]
[1625455014338,2.20527,2260.9,2260.6,17.166247]
[1625455014443,2.20527,2260.9,2260.6,1.0]
[1625455014944,2.20527,2260.9,2260.7,15.983442]
[1625455015695,2.20527,2260.8,2260.7,15.983442]
[1625455016196,2.20527,2260.8,2260.7,16.983442]
[1625455016497,2.20527,2260.8,2260.7,1.0]
[1625455016798,2.20527,2260.8,2260.7,17.119937]
[1625455017752,2.20527,2260.8,2260.7,19.325207]
[1625455019267,15.0119,2261.4,2260.7,19.325207]
[1625455019367,1.29883319,2262.2,2260.7,19.325207]
[1625455019468,1.29883319,2262.2,2260.7,22.945407]
[1625455019768,2.20527,2261.5,2261.4,2.20527]
[1625455019970,2.20527,2261.5,2261.4,3.20527]
[1625455020069,2.20527,2261.5,2261.4,16.968058]
[1625455021524,2.20527,2261.5,2261.4,15.968058]
[1625455021724,4.41054,2261.5,2261.4,15.968058]
[1625455022026,4.41054,2261.5,2261.3,16.015897]
[1625455022226,4.41054,2261.5,2261.4,16.15535]
[1625455022526,4.41054,2261.5,2261.2,3.20527]
[1625455022626,4.41054,2261.5,2261.2,2.20527]
[1625455022726,4.41054,2261.5,2260.7,2.20527]
[1625455022828,4.41054,2261.5,2260.8,1.0]
[1625455023176,4.41054,2261.5,2260.9,16.022513]
[1625455023379,4.41054,2261.5,2260.9,17.022513]
[1625455023677,4.41054,2261.5,2260.9,1.0]
[1625455023777,4.41054,2261.0,2260.9,1.0]
[1625455023981,6.57731478,2262.4,2261.0,16.086372]
[1625455023982,6.05776914,2262.4,2261.0,16.086372]
[1625455024078,6.05776914,2262.4,2261.1,4.5183]
[1625455024382,6.05776914,2262.4,2261.2,15.968611]
[1625455024479,6.05776914,2262.4,2261.3,1.0]
[1625455024579,4.759,2262.4,2261.3,1.0]
[1625455024779,4.759,2262.4,2261.4,16.032764]
[1625455024880,4.759,2262.4,2261.5,1.0]
[1625455025179,4.759,2262.4,2261.6,15.989563]
[1625455025781,2.20527,2261.8,2261.7,2.20527]
[1625455025882,4.55347,2261.8,2261.7,2.20527]
[1625455027333,4.55347,2261.8,2261.4,2.20527]
[1625455027548,4.55347,2261.8,2260.0,15.06994554]
[1625455027837,4.90687,2261.0,2260.9,2.20527]
[1625455028284,4.90687,2261.0,2260.7,2.20527]
[1625455028987,4.90687,2261.0,2260.2,1.0]
[1625455029637,4.90687,2261.0,2260.3,16.135105]
[1625455029746,4.90687,2261.0,2260.4,1.0]
[1625455029838,4.90687,2261.0,2260.5,2.20527]
[1625455029939,4.90687,2261.0,2260.6,1.0]
[1625455030247,4.90687,2261.0,2260.5,18.359743]
[1625455030347,4.90687,2261.0,2260.5,19.359743]
[1625455030449,4.90687,2261.0,2260.5,3.20527]
[1625455030849,4.90687,2261.0,2260.6,16.140311]
[1625455031761,4.90687,2261.0,2260.8,2.20527]
[1625455032561,4.90687,2261.0,2260.8,3.20527]
[1625455034017,4.90687,2261.0,2260.8,2.20527]
[1625455035369,4.90687,2261.0,2260.8,3.20527]
[1625455035470,2.20527,2261.0,2260.8,6.97147]
[1625455035571,4.759,2261.8,2260.8,6.97147]
[1625455035870,2.20527,2261.5,2261.4,2.20527]
[1625455037825,4.41054,2261.5,2261.4,2.20527]
[1625455039386,4.41054,2261.5,2261.4,3.20527]
[1625455040033,4.41054,2261.5,2261.4,19.17719]
[1625455042587,4.41054,2261.5,2261.4,18.17719]
[1625455042788,4.41054,2261.5,2261.4,2.20527]
[1625455043937,7.24994,2261.5,2261.4,2.20527]
[1625455045241,7.24994,2261.5,2260.8,3.20527]
[1625455045901,2.20527,2261.0,2260.9,16.051577]
[1625455049311,2.20527,2261.0,2260.9,17.051577]
[1625455049862,4.759,2261.9,2260.9,17.051577]
[1625455049963,4.759,2261.9,2260.9,19.445877]
[1625455051064,4.759,2261.9,2261.1,46.0908]
[1625455051163,4.759,2261.9,2261.2,1.0]
[1625455051266,2.20527,2262.0,2261.2,1.0]
[1625455051364,2.20527,2262.0,2261.2,17.122491]
[1625455051875,2.20527,2262.0,2261.9,2.20527]
[1625455051973,2.20527,2262.0,2261.9,3.20527]
[1625455055680,2.20527,2262.0,2261.9,2.20527]
[1625455056834,2.20527,2262.0,2261.9,3.20527]
[1625455057234,2.20527,2262.0,2261.9,19.335208]
[1625455059589,2.20527,2262.0,2261.9,18.335208]
[1625455059939,2.20527,2262.0,2261.9,19.335208]
[1625455061092,2.20527,2262.0,2261.9,18.335208]
[1625455061191,2.20527,2262.0,2261.9,19.335208]
[1625455061996,2.20527,2262.0,2261.9,3.20527]
[1625455062097,2.20527,2262.0,2261.9,2.20527]
[1625455062402,2.20527,2262.0,2261.9,3.20527]
[1625455062799,2.20527,2262.0,2261.9,19.229639]
[1625455070396,2.20527,2262.3,2261.9,19.229639]
[1625455070950,14.5127,2262.7,2261.9,19.229639]
[1625455072010,16.71797,2262.7,2262.6,4.41054]
[1625455072309,2.20527,2262.7,2262.6,4.41054]
[1625455073869,2.20527,2262.7,2262.6,8.96194]
[1625455074369,2.20527,2262.7,2262.6,25.065396]
[1625455076319,2.20527,2262.7,2262.6,8.96194]
[1625455077723,2.20527,2262.7,2262.6,24.932903]
[1625455080695,2.20527,2263.0,2262.6,24.932903]
[1625455082107,2.20527,2263.0,2262.9,2.20527]
[1625455082300,2.20527,2263.0,2262.9,3.20527]
[1625455082402,2.20527,2263.0,2262.9,19.115245]
[1625455084303,2.20527,2263.0,2262.9,3.20527]
[1625455084701,2.20527,2263.0,2262.9,19.245456]
[1625455086504,2.20527,2263.3,2262.9,19.245456]
[1625455087316,2.20527,2263.3,2263.2,38.5752]
[1625455087417,2.20527,2263.3,2263.2,39.5752]
[1625455087617,2.20527,2263.3,2263.2,55.514596]
[1625455087817,2.20527,2263.3,2263.2,58.201396]
[1625455088074,2.20527,2263.3,2263.2,60.406666]
[1625455090272,2.20527,2263.3,2263.2,21.831466]
[1625455090372,2.20527,2263.3,2263.2,19.144666]
[1625455090973,2.20527,2263.3,2263.2,21.439466]
[1625455091076,2.20527,2263.7,2263.2,21.439466]
[1625455091176,1.29761234,2264.4,2263.2,21.439466]
[1625455091575,1.29761234,2264.4,2263.2,26.439466]
[1625455091680,1.2974701,2264.8,2263.2,26.439466]
[1625455091881,0.29622824,2264.9,2263.2,26.439466]
[1625455092180,0.29622824,2264.9,2264.8,56.32204]
[1625455092278,5.57869227,2265.2,2264.8,57.32204]
[1625455092279,2.20527,2265.2,2264.8,57.32204]
[1625455092380,2.20527,2265.5,2264.8,57.32204]
[1625455092579,2.20527,2265.5,2264.8,73.252751]
[1625455093082,2.20527,2265.5,2264.8,25.088251]
[1625455093732,2.20527,2265.5,2264.9,52.9963]
[1625455093930,4.759,2266.2,2265.0,1.0]
[1625455094030,4.759,2266.2,2265.0,17.080557]
[1625455094133,2.20527,2265.9,2265.8,2.20527]
[1625455095187,2.20527,2265.9,2264.6,1.0]
[1625455095281,4.51467,2265.9,2264.3,14.4497]
[1625455095382,5.40547,2265.9,2264.3,14.4497]
[1625455095482,5.40547,2265.9,2263.4,14.4628]
[1625455095483,10.40547,2265.9,2263.4,14.4628]
[1625455095882,51.8879,2265.1,2263.4,14.4628]
[1625455095982,54.5435,2265.1,2263.4,14.4628]
[1625455096081,54.5435,2265.1,2263.5,15.964315]
[1625455096182,2.20527,2264.4,2264.3,2.20527]
[1625455096284,2.8573,2264.5,2264.3,2.20527]
[1625455096482,2.8573,2264.5,2264.4,1.0]
[1625455096784,2.8573,2264.5,2264.3,2.20527]
[1625455096884,2.8573,2264.5,2264.4,15.967726]
[1625455097183,2.20527,2264.6,2264.4,15.967726]
[1625455097485,2.20527,2264.6,2264.3,2.20527]
[1625455097584,39.2376,2264.9,2264.3,3.20527]
[1625455097684,2.6556,2265.1,2264.3,3.20527]
[1625455098685,2.6556,2265.1,2264.4,15.997577]
[1625455098784,2.3094,2265.9,2264.5,1.0]
[1625455098885,4.759,2266.2,2264.5,1.0]
[1625455099189,4.759,2266.2,2264.6,16.022928]
[1625455099290,4.759,2266.2,2264.6,17.022928]
[1625455099690,4.759,2266.2,2264.6,1.0]
[1625455100039,4.759,2266.2,2264.7,15.898074]
[1625455100189,2.20527,2265.1,2265.0,2.20527]
[1625455100318,5.28507,2265.1,2265.0,2.20527]
[1625455100837,54.88437,2265.1,2265.0,2.20527]
[1625455101141,5.28507,2265.1,2265.0,2.20527]
[1625455103800,2.20527,2265.1,2265.0,3.20527]
[1625455104350,2.20527,2265.1,2265.0,19.134076]
[1625455104754,2.20527,2265.1,2265.0,18.134076]
[1625455106961,2.20527,2265.1,2265.0,19.134076]
[1625455108832,35.83104,2266.5,2265.0,19.134076]
[1625455108934,23.0663,2266.7,2265.0,19.134076]
[1625455109233,18.3073,2266.7,2265.0,19.134076]
[1625455109635,15.1077,2266.7,2265.0,19.134076]
[1625455110189,2.20527,2266.3,2266.2,2.20527]
[1625455112244,4.41054,2266.3,2266.2,2.20527]
[1625455114846,4.759,2267.3,2266.2,2.20527]
[1625455115548,4.759,2267.3,2266.2,3.20527]
[1625455115649,4.759,2267.3,2266.3,15.975332]
[1625455116203,2.20527,2266.9,2266.8,2.20527]
[1625455117254,2.20527,2266.9,2266.8,1.15947033]
[1625455118256,4.41054,2266.9,2266.8,1.15947033]
[1625455121614,4.41054,2266.9,2266.8,7.033e-05]
[1625455121711,7.84374,2266.9,2266.8,7.033e-05]
[1625455121915,7.84374,2266.9,2266.2,3.20527]
[1625455122020,7.84374,2266.9,2266.2,2.20527]
[1625455122315,4.41054,2266.3,2266.2,2.20527]